bitfinex/quotes_SOLUSD_20250305
["timestamp","ask_amount","ask_price","bid_price","bid_amount"]
[1741138688189,42.17119398,144.35,144.26,6.9319]
[1741138688400,81.8,144.34,144.3,42.17119398]
[1741138688770,81.8,144.34,144.31,42.17119398]
[1741138688972,81.8,144.34,144.3,42.17119398]
[1741138689172,218.1,144.33,144.28,42.17119398]
[1741138689367,260.27119398,144.33,144.27,42.17119398]
[1741138689598,81.8,144.32,144.27,42.17119398]
[1741138689766,81.8,144.32,144.22,104.9968]
[1741138689969,81.8,144.31,144.26,42.17119398]
[1741138690169,81.8,144.3,144.27,42.17119398]
[1741138690669,3.79850572,144.35,144.22,87.6628]
[1741138690670,81.8,144.29,144.22,12.9966]
[1741138690894,81.8,144.28,144.23,42.17119398]
[1741138691069,123.97119398,144.27,144.21,42.17119398]
[1741138691484,81.8,144.27,144.21,42.17119398]
[1741138691687,81.8,144.27,144.23,42.17119398]
[1741138691897,81.8,144.27,144.24,42.17119398]
[1741138692206,123.97119398,144.27,144.2,42.17119398]
[1741138692593,88.7316,144.27,144.22,42.17119398]
[1741138692800,130.90279398,144.27,144.21,42.17119398]
[1741138693493,81.8,144.26,144.21,42.17119398]
[1741138693689,81.8,144.25,144.21,42.17119398]
[1741138694411,218.38432314,144.24,144.2,42.17119398]
[1741138694710,42.17119398,144.21,144.19,0.033]
[1741138695018,260.27119398,144.2,144.16,0.033]
[1741138695221,81.8,144.19,144.16,0.033]
[1741138695881,81.8,144.18,144.16,0.033]
[1741138697388,1.6437,144.21,144.16,0.033]
[1741138697595,43.81489398,144.21,144.16,0.033]
[1741138697989,42.17119398,144.2,144.16,0.033]
[1741138698306,81.8,144.19,144.16,0.033]
[1741138698714,1.6437,144.21,144.16,42.20419398]
[1741138698911,81.8,144.2,144.16,0.033]
[1741138699114,130.05119398,144.2,144.16,0.033]
[1741138699690,87.88,144.2,144.16,0.033]
[1741138699910,81.8,144.19,144.16,0.033]
[1741138700316,218.1,144.18,144.16,0.033]
[1741138700493,218.38432314,144.17,144.16,0.033]
[1741138700691,0.28432314,144.17,144.16,0.033]
[1741138701383,136.3,144.19,144.16,0.033]
[1741138701590,136.3,144.19,144.16,25.99005774]
[1741138702103,6.1,144.2,144.18,25.95705774]
[1741138702402,143.9361,144.25,144.19,25.95705774]
[1741138702614,143.9361,144.25,144.21,25.95705774]
[1741138702807,0.28432314,144.24,144.16,0.033]
[1741138703101,136.58432314,144.24,144.18,25.95705774]
[1741138703304,25.95705774,144.23,144.16,25.99005774]
[1741138703485,0.28432314,144.23,144.17,25.95705774]
[1741138703677,26.24138088,144.23,144.17,25.95705774]
[1741138703981,136.3,144.24,144.17,25.95705774]
[1741138704186,136.3,144.24,144.19,25.95705774]
[1741138704501,136.3,144.23,144.18,25.95705774]
[1741138704900,136.3,144.23,144.17,25.95705774]
[1741138705213,162.25705774,144.23,144.17,25.95705774]
[1741138705593,136.3,144.23,144.18,25.95705774]
[1741138705803,218.1,144.23,144.18,25.95705774]
[1741138706001,218.1,144.23,144.21,25.95705774]
[1741138706584,89.4161,144.25,144.21,25.95705774]
[1741138707009,89.4161,144.25,144.22,6.9338]
[1741138707195,89.4161,144.25,144.22,32.89085774]
[1741138707383,81.8,144.25,144.22,32.89085774]
[1741138708000,81.8,144.25,144.2,25.95705774]
[1741138709005,81.8,144.24,144.21,6.9343]
[1741138709194,81.8,144.24,144.21,32.89135774]
[1741138710191,81.8,144.24,144.22,25.95705774]
[1741138710391,81.8,144.24,144.23,25.95705774]
[1741138711085,81.8,144.26,144.23,50.22375774]
[1741138711288,0.03,144.28,144.25,25.95705774]
[1741138711515,0.03,144.28,144.27,25.95705774]
[1741138712614,0.03,144.28,144.25,25.95705774]
[1741138713518,0.03,144.28,144.26,25.95705774]
[1741138713693,0.03,144.28,144.27,25.95705774]
[1741138714413,0.03,144.28,144.26,25.95705774]
[1741138714623,0.03,144.28,144.25,25.95705774]
[1741138715323,0.03,144.28,144.26,25.95705774]
[1741138718221,0.03,144.28,144.25,25.95705774]
[1741138719129,0.03,144.28,144.22,6.9337]
[1741138719130,0.03,144.28,144.26,25.95705774]
[1741138721617,0.03,144.28,144.25,25.95705774]
[1741138722135,0.03,144.28,144.24,25.95705774]
[1741138722296,26.24138088,144.26,144.2,25.95705774]
[1741138722932,25.95705774,144.25,144.19,25.95705774]
[1741138723097,81.8,144.24,144.19,25.95705774]
[1741138723299,81.8,144.23,144.19,25.95705774]
[1741138723498,81.8,144.23,144.18,25.95705774]
[1741138724034,81.8,144.23,144.17,25.95705774]
[1741138724803,81.8,144.23,144.18,25.95705774]
[1741138725215,81.8,144.23,144.2,25.95705774]
[1741138725528,218.1,144.25,144.22,25.95705774]
[1741138725699,6.9315,144.27,144.24,25.95705774]
[1741138725895,6.9315,144.27,144.23,25.95705774]
[1741138726334,10.4174815,144.28,144.23,25.95705774]
[1741138726496,81.8,144.27,144.23,25.95705774]
[1741138726700,81.8,144.27,144.17,105.8764]
[1741138726701,81.8,144.27,144.25,25.95705774]
[1741138726915,81.8,144.27,144.24,25.95705774]
[1741138727905,81.8,144.27,144.22,6.9338]
[1741138728107,81.8,144.27,144.25,25.95705774]
[1741138728623,81.8,144.26,144.23,25.95705774]
[1741138728822,81.8,144.26,144.22,25.95705774]
[1741138729447,6.9324,144.25,144.22,25.95705774]
[1741138729617,88.7324,144.25,144.22,25.95705774]
[1741138729949,81.8,144.25,144.22,25.95705774]
[1741138730248,81.8,144.25,144.23,25.95705774]
[1741138731446,6.9328,144.24,144.19,25.95705774]
[1741138731616,81.8,144.23,144.19,25.95705774]
[1741138732019,81.8,144.23,144.2,25.95705774]
[1741138732327,81.8,144.23,144.22,25.95705774]
[1741138732518,218.1,144.25,144.22,25.95705774]
[1741138732737,218.1,144.25,144.23,25.95705774]
[1741138733757,81.83,144.28,144.24,25.95705774]
[1741138733923,81.83,144.28,144.26,25.95705774]
[1741138734127,85.38132894,144.28,144.23,25.95705774]
[1741138734420,92.31232894,144.28,144.22,25.95705774]
[1741138735143,218.1,144.27,144.21,25.95705774]
[1741138735334,218.1,144.26,144.21,25.95705774]
[1741138735519,0.03,144.25,144.21,25.95705774]
[1741138735952,0.03,144.25,144.22,25.95705774]
[1741138736445,0.03,144.25,144.23,25.95705774]
[1741138738125,0.03,144.25,144.22,25.95705774]
[1741138740338,0.03,144.25,144.22,32.89085774]
[1741138740529,0.03,144.25,144.23,25.95705774]
[1741138740731,0.03,144.25,144.24,25.95705774]
[1741138740933,0.03,144.25,144.23,25.95705774]
[1741138741151,0.03,144.25,144.21,25.95705774]
[1741138741456,81.8,144.24,144.2,25.95705774]
[1741138741752,81.8,144.24,144.21,25.95705774]
[1741138742125,81.8,144.24,144.17,6.9362]
[1741138742426,81.8,144.24,144.21,25.95705774]
[1741138743635,81.8,144.23,144.2,25.95705774]
[1741138743836,107.75705774,144.23,144.17,25.95705774]
[1741138744138,218.1,144.22,144.17,25.95705774]
[1741138744339,218.1,144.22,144.2,25.95705774]
[1741138744632,81.8,144.22,144.16,6.9697]
[1741138744838,5.84,144.23,144.21,25.95705774]
[1741138745034,0.03,144.25,144.22,25.95705774]
[1741138745234,0.03,144.25,144.24,25.95705774]
[1741138746438,0.03,144.25,144.24,32.88985774]
[1741138747239,0.03,144.25,144.24,25.95705774]
[1741138747775,0.03,144.25,144.23,25.95705774]
[1741138748055,81.8,144.24,144.19,25.95705774]
[1741138748258,81.8,144.23,144.19,25.95705774]
[1741138748442,81.8,144.23,144.2,25.95705774]
[1741138748839,0.03,144.25,144.22,25.95705774]
[1741138749050,81.8,144.24,144.16,6.9696]
[1741138749252,81.8,144.23,144.19,25.95705774]
[1741138749644,81.8,144.23,144.2,25.95705774]
[1741138750159,81.8,144.23,144.19,25.95705774]
[1741138750160,88.7335,144.23,144.19,25.95705774]
[1741138750666,88.7335,144.23,144.18,25.95705774]
[1741138750838,88.7335,144.23,144.16,0.033]
[1741138751035,81.8,144.22,144.17,25.95705774]
[1741138751664,88.7343,144.21,144.17,25.95705774]
[1741138753846,88.7343,144.21,144.16,25.99005774]
[1741138754736,85.2550316,144.21,144.17,25.95705774]
[1741138754936,81.8,144.21,144.19,25.95705774]
[1741138755138,218.1,144.23,144.2,25.95705774]
[1741138755374,0.03,144.25,144.22,25.95705774]
[1741138755570,0.03,144.25,144.23,25.95705774]
[1741138755745,0.03,144.25,144.21,25.95705774]
[1741138755946,0.03,144.25,144.22,25.95705774]
[1741138756358,0.03,144.25,144.23,25.95705774]
[1741138756757,0.03,144.25,144.21,45.95705774]
[1741138757079,0.03,144.25,144.22,25.95705774]
[1741138757273,0.03,144.25,144.24,25.95705774]
[1741138758349,0.03,144.25,144.24,32.88985774]
[1741138760369,0.03,144.28,144.27,20.0]
[1741138760581,0.0001,144.28,144.27,153.51411548]
[1741138760744,0.0001,144.28,144.27,160.11763862]
[1741138760944,0.0001,144.28,144.27,78.51763862]
[1741138761472,0.0001,144.28,144.27,25.95705774]
[1741138761776,0.0001,144.28,144.27,51.91411548]
[1741138761975,0.0001,144.28,144.27,52.19843862]
[1741138762267,0.03,144.37,144.31,20.0]
[1741138762449,0.03,144.37,144.36,25.95705774]
[1741138762645,0.03,144.37,144.34,25.95705774]
[1741138762850,0.03,144.37,144.35,25.95705774]
[1741138763578,0.03,144.37,144.36,25.95705774]
[1741138764279,0.03,144.37,144.36,121.04338088]
[1741138764577,0.03,144.37,144.36,113.83195774]
[1741138764881,0.03,144.37,144.36,25.95705774]
[1741138766261,0.03,144.37,144.36,32.88415774]
[1741138767773,0.03,144.37,144.36,25.95705774]
[1741138768375,0.03,144.4,144.37,25.95705774]
[1741138768676,81.8,144.39,144.34,25.95705774]
[1741138768889,81.8,144.38,144.33,25.95705774]
[1741138769190,81.8,144.38,144.34,25.95705774]
[1741138769951,81.8,144.38,144.37,25.95705774]
[1741138770563,5.8,144.39,144.37,25.95705774]
[1741138770766,5.8,144.39,144.38,25.95705774]
[1741138770970,0.03,144.4,144.38,25.95705774]
[1741138771175,0.03,144.4,144.39,25.95705774]
[1741138772682,0.03,144.4,144.39,32.88265774]
[1741138774482,0.03,144.43,144.39,32.88265774]
[1741138774483,0.03,144.43,144.4,7.20952314]
[1741138774679,0.03,144.43,144.42,45.95705774]
[1741138776690,0.03,144.43,144.42,52.88125774]
[1741138777812,0.03,144.43,144.42,134.48125774]
[1741138779889,81.8,144.51,144.47,20.0]
[1741138780065,0.03,144.52,144.5,25.95705774]
[1741138780389,0.03,144.52,144.51,25.95705774]
[1741138780802,0.03,144.52,144.5,25.95705774]
[1741138781095,0.03,144.52,144.51,25.95705774]
[1741138781679,0.03,144.52,144.49,25.95705774]
[1741138781988,81.83,144.52,144.48,25.95705774]
[1741138782194,81.83,144.52,144.49,25.95705774]
[1741138782567,0.03,144.52,144.51,25.95705774]
[1741138782797,0.03,144.52,144.51,32.87695774]
[1741138786397,0.03,144.52,144.51,25.95705774]
[1741138786789,81.83,144.52,144.47,25.95705774]
[1741138787097,81.83,144.52,144.49,25.95705774]
[1741138787098,218.13,144.52,144.49,25.95705774]
[1741138787688,218.13,144.52,144.47,6.9215]
[1741138787885,218.13,144.52,144.49,25.95705774]
[1741138788095,218.13,144.52,144.5,25.95705774]
[1741138788290,0.03,144.52,144.5,25.95705774]
[1741138788678,0.03,144.52,144.51,25.95705774]
[1741138789101,0.03,144.52,144.5,25.95705774]
[1741138790080,0.03,144.52,144.51,25.95705774]
[1741138790285,0.03,144.52,144.5,32.87735774]
[1741138790797,0.03,144.52,144.49,32.87785774]
[1741138790990,0.03,144.52,144.49,25.95705774]
[1741138791501,0.03,144.52,144.5,25.95705774]
[1741138791706,0.03,144.52,144.49,6.9208]
[1741138791707,0.03,144.52,144.51,25.95705774]
[1741138792398,81.33,144.53,144.51,25.95705774]
[1741138792707,81.33,144.53,144.52,25.95705774]
[1741138794602,81.33,144.53,144.52,32.87645774]
[1741138796109,81.33,144.53,144.51,25.95705774]
[1741138796415,108.93985774,144.52,144.46,25.95705774]
[1741138796610,0.28432314,144.5,144.45,25.95705774]
[1741138796791,26.24138088,144.5,144.44,25.95705774]
[1741138796989,26.24138088,144.5,144.43,0.033]
[1741138797190,26.24138088,144.48,144.43,0.033]
[1741138797390,25.95705774,144.47,144.43,0.033]
[1741138797712,217.63,144.46,144.43,0.033]
[1741138798231,6.9228,144.45,144.43,0.033]
[1741138798882,224.5523,144.46,144.43,0.033]
[1741138799212,217.63,144.46,144.43,0.033]
[1741138799383,217.63,144.46,144.43,25.99005774]
[1741138799583,217.63,144.46,144.45,25.95705774]
[1741138799791,217.63,144.46,144.44,25.95705774]
[1741138800086,81.33,144.46,144.45,25.95705774]
[1741138800284,81.33,144.46,144.44,25.95705774]
[1741138800487,81.33,144.46,144.45,25.95705774]
[1741138801487,81.33,144.48,144.45,25.95705774]
[1741138801687,81.33,144.48,144.46,25.95705774]
[1741138803114,81.33,144.48,144.44,25.95705774]
[1741138803307,217.63,144.47,144.43,25.99005774]
[1741138803490,26.24138088,144.46,144.43,0.033]
[1741138803685,0.28432314,144.44,144.43,0.033]
[1741138804012,27.90338088,144.44,144.43,0.033]
[1741138804414,1.94632314,144.44,144.43,0.033]
[1741138805019,8.86952314,144.44,144.43,0.033]
[1741138805530,1.662,144.44,144.43,0.033]
[1741138805687,8.86952314,144.44,144.43,0.033]
[1741138806183,12.30215396,144.44,144.43,0.033]
[1741138806388,5.09463082,144.44,144.43,0.033]
[1741138806602,1.6525,144.48,144.43,25.99005774]
[1741138806805,136.3,144.49,144.47,25.95705774]
[1741138807114,21.11056313,144.51,144.47,25.95705774]
[1741138807115,157.41056313,144.51,144.47,25.95705774]
[1741138807331,193.83694169,144.51,144.45,25.95705774]
[1741138807690,193.83694169,144.51,144.44,25.95705774]
[1741138807890,162.54138088,144.5,144.44,25.95705774]
[1741138808516,26.24138088,144.48,144.43,0.033]
[1741138808717,136.3,144.47,144.43,0.033]
[1741138809020,162.54138088,144.46,144.43,0.033]
[1741138809587,0.28432314,144.44,144.43,0.033]
[1741138809787,26.24138088,144.44,144.43,0.033]
[1741138810340,33.16458088,144.44,144.43,0.033]
[1741138810892,56.79718088,144.44,144.37,0.033]
[1741138811211,26.24138088,144.4,144.37,0.033]
[1741138811386,5.7,144.39,144.37,0.033]
[1741138812217,5.7,144.39,144.37,25.99005774]
[1741138813010,9.23165582,144.44,144.38,25.95705774]
[1741138813212,9.23165582,144.44,144.39,25.95705774]
[1741138813424,0.28432314,144.43,144.38,25.95705774]
[1741138814294,26.24138088,144.43,144.37,25.99005774]
[1741138814496,6.9242,144.42,144.37,25.99005774]
[1741138815310,0.28432314,144.43,144.38,25.95705774]
[1741138815493,7.20842314,144.43,144.38,25.95705774]
[1741138816322,7.20842314,144.43,144.37,25.99005774]
[1741138817223,26.24138088,144.41,144.37,0.033]
[1741138817517,7.06626157,144.43,144.37,0.033]
[1741138817518,0.28432314,144.39,144.37,0.033]
[1741138817724,26.24138088,144.39,144.37,0.033]
[1741138818205,0.28432314,144.39,144.37,0.033]
[1741138818407,218.1,144.4,144.37,0.033]
[1741138818719,218.1,144.4,144.37,25.99005774]
[1741138821118,81.8,144.4,144.37,25.99005774]
[1741138821327,81.8,144.4,144.39,25.95705774]
[1741138822329,218.1,144.39,144.37,0.033]
[1741138822504,244.34138088,144.38,144.37,0.033]
[1741138822848,26.24138088,144.38,144.37,0.033]
[1741138823526,0.28432314,144.36,144.28,25.99005774]
[1741138823732,1.5054,144.37,144.28,25.99005774]
[1741138823733,26.24138088,144.33,144.28,0.033]
[1741138824232,31.63705774,144.35,144.29,25.95705774]
[1741138824432,5.68,144.35,144.3,25.95705774]
[1741138824722,5.68,144.35,144.31,25.95705774]
[1741138825308,5.68,144.35,144.3,25.95705774]
[1741138825523,12.6076,144.35,144.3,25.95705774]
[1741138825704,0.28432314,144.34,144.28,0.033]
[1741138825904,0.28432314,144.34,144.24,25.95705774]
[1741138825905,26.24138088,144.31,144.24,25.95705774]
[1741138826101,26.24138088,144.29,144.23,25.95705774]
[1741138826606,0.28432314,144.29,144.24,25.95705774]
[1741138827324,38.56495774,144.35,144.28,25.95705774]
[1741138827504,38.56495774,144.35,144.22,6.9667]
[1741138827505,136.3,144.33,144.29,25.95705774]
[1741138827830,81.8,144.32,144.31,25.95705774]
[1741138830405,81.8,144.32,144.25,6.2989]
[1741138830606,136.3,144.34,144.28,25.95705774]
[1741138830607,81.8,144.31,144.28,25.95705774]
[1741138830830,81.8,144.3,144.28,25.95705774]
[1741138831126,81.8,144.3,144.29,25.95705774]
[1741138832013,88.7301,144.3,144.26,25.95705774]
[1741138832331,218.1,144.29,144.24,25.95705774]
[1741138832633,81.8,144.28,144.25,25.95705774]
[1741138833134,81.8,144.28,144.26,25.95705774]
[1741138834327,81.8,144.28,144.25,25.95705774]
[1741138835539,81.8,144.28,144.26,25.95705774]
[1741138835741,81.8,144.28,144.27,25.95705774]
[1741138835936,218.1,144.32,144.27,25.95705774]
[1741138836125,81.8,144.31,144.28,25.95705774]
[1741138837139,81.8,144.31,144.27,25.95705774]
[1741138837307,88.7295,144.31,144.26,25.95705774]
[1741138838434,0.28432314,144.3,144.24,25.95705774]
[1741138838617,218.1,144.29,144.24,25.95705774]
[1741138839343,218.1,144.29,144.27,25.95705774]
[1741138839515,81.8,144.29,144.27,25.95705774]
[1741138840544,81.8,144.29,144.23,6.9333]
[1741138840717,81.8,144.28,144.24,25.95705774]
[1741138841939,88.7309,144.28,144.24,25.95705774]
[1741138842251,81.8,144.28,144.24,25.95705774]
[1741138843154,88.7309,144.28,144.23,25.95705774]
[1741138843629,88.7309,144.28,144.24,25.95705774]
[1741138844055,81.8,144.28,144.24,25.95705774]
[1741138844350,81.8,144.27,144.25,25.95705774]
[1741138845548,81.83,144.32,144.26,25.95705774]
[1741138845855,81.83,144.32,144.3,25.95705774]
[1741138846051,81.83,144.32,144.3,32.88695774]
[1741138846239,81.83,144.32,144.3,25.95705774]
[1741138847058,81.83,144.32,144.31,25.95705774]
[1741138847350,0.03,144.32,144.31,25.95705774]
[1741138847752,0.03,144.32,144.27,6.9313]
[1741138847955,81.8,144.31,144.3,25.95705774]
[1741138848136,81.8,144.31,144.3,32.88705774]
[1741138848550,81.8,144.31,144.3,25.95705774]
[1741138848753,81.8,144.31,144.29,25.95705774]
[1741138849059,81.8,144.31,144.28,25.95705774]
[1741138850155,81.8,144.3,144.24,0.033]
[1741138850337,218.1,144.29,144.24,0.033]
[1741138850748,218.1,144.29,144.26,25.95705774]
[1741138850953,218.1,144.29,144.28,25.95705774]
[1741138851143,81.8,144.31,144.28,25.95705774]
[1741138852357,81.8,144.31,144.29,25.95705774]
[1741138852749,0.03,144.32,144.28,6.9308]
[1741138852943,0.03,144.32,144.31,45.95705774]
[1741138854161,0.03,144.32,144.31,52.88655774]
[1741138855260,0.03,144.32,144.31,45.95705774]
[1741138855461,0.03,144.32,144.28,81.6]
[1741138855673,0.03,144.32,144.3,25.95705774]
[1741138855872,81.8,144.31,144.28,25.95705774]
[1741138856179,81.8,144.31,144.27,25.95705774]
[1741138856347,88.7296,144.31,144.27,25.95705774]
[1741138856667,81.8,144.31,144.27,32.88845774]
[1741138856868,81.8,144.31,144.27,25.95705774]
[1741138857245,81.8,144.31,144.28,25.95705774]
[1741138859070,81.8,144.31,144.25,6.965]
[1741138859366,81.8,144.3,144.26,25.95705774]
[1741138860071,81.8,144.3,144.25,6.965]
[1741138860254,81.8,144.29,144.25,25.99005774]
[1741138860869,81.8,144.29,144.26,25.95705774]
[1741138861362,81.8,144.29,144.27,25.95705774]
[1741138861775,81.8,144.29,144.28,45.95705774]
[1741138862065,81.8,144.31,144.28,45.95705774]
[1741138862446,136.33,144.32,144.25,0.033]
[1741138862447,81.8,144.3,144.25,0.033]
[1741138862644,244.34138088,144.29,144.25,0.033]
[1741138862878,1.94932314,144.25,144.24,0.033]
[1741138863176,33.56638088,144.25,144.24,0.033]
[1741138864264,14.54172314,144.25,144.24,0.033]
[1741138864469,7.60932314,144.25,144.24,0.033]
[1741138864778,7.325,144.25,144.24,0.033]
[1741138864955,5.66,144.25,144.24,0.033]
[1741138865865,5.94432314,144.25,144.24,0.033]
[1741138866787,5.66,144.25,144.24,0.033]
[1741138868662,5.94432314,144.25,144.24,0.033]
[1741138868863,12.87672314,144.25,144.24,0.033]
[1741138869781,38.83378088,144.25,144.24,0.033]
[1741138873484,1.81012314,144.23,144.22,0.033]
[1741138873690,34.02178088,144.23,144.22,0.033]
[1741138874267,0.28432314,144.22,144.16,0.033]
[1741138874460,0.28432314,144.2,144.16,0.033]
[1741138874666,0.28432314,144.18,144.16,0.033]
[1741138875074,26.24138088,144.18,144.16,0.033]
[1741138875682,0.28432314,144.18,144.16,0.033]
[1741138876759,5.66,144.21,144.16,0.033]
[1741138876963,218.1,144.2,144.16,0.033]
[1741138877579,218.1,144.2,144.16,25.99005774]
[1741138878491,218.1,144.2,144.16,32.92645774]
[1741138878983,218.1,144.2,144.16,32.92665774]
[1741138879561,81.8,144.19,144.16,32.92665774]
[1741138879782,81.8,144.19,144.17,25.95705774]
[1741138880387,81.8,144.19,144.18,25.95705774]
[1741138880891,81.8,144.21,144.18,32.89275774]
[1741138881101,81.8,144.21,144.2,25.95705774]
[1741138881267,81.8,144.26,144.2,51.91411548]
[1741138881466,81.8,144.26,144.24,25.95705774]
[1741138881667,81.8,144.26,144.22,25.95705774]
[1741138881886,81.8,144.26,144.21,25.95705774]
[1741138882087,81.8,144.25,144.22,25.95705774]
[1741138883276,88.7324,144.25,144.21,25.95705774]
[1741138883794,218.38432314,144.24,144.18,25.95705774]
[1741138884091,0.28432314,144.22,144.17,25.95705774]
[1741138884463,218.1,144.21,144.17,25.95705774]
[1741138884699,0.28432314,144.18,144.16,0.033]
[1741138884895,218.38432314,144.17,144.16,0.033]
[1741138885199,251.27758088,144.17,144.16,0.033]
[1741138885794,218.38432314,144.17,144.16,0.033]
[1741138885970,225.32052314,144.17,144.16,0.033]
[1741138886289,218.38432314,144.17,144.16,0.033]
[1741138886596,218.1,144.17,144.16,0.033]
[1741138886792,221.57317761,144.17,144.16,0.033]
[1741138887095,85.27317761,144.17,144.16,0.033]
[1741138887388,5.66,144.18,144.16,25.99005774]
[1741138887567,81.8,144.21,144.17,25.95705774]
[1741138887890,81.8,144.2,144.18,25.95705774]
[1741138888095,82.08432314,144.19,144.16,0.033]
[1741138889194,218.1,144.21,144.17,25.95705774]
[1741138889379,81.8,144.21,144.17,25.95705774]
[1741138891171,81.8,144.21,144.16,25.99005774]
[1741138891365,218.38432314,144.2,144.16,0.033]
[1741138891695,244.34138088,144.2,144.16,0.033]
[1741138891901,218.38432314,144.2,144.16,0.033]
[1741138892688,244.34138088,144.2,144.16,0.033]
[1741138893207,81.8,144.2,144.16,25.99005774]
[1741138893498,81.8,144.2,144.16,0.033]
[1741138894300,81.8,144.2,144.16,25.99005774]
[1741138894883,81.8,144.2,144.17,25.95705774]
[1741138895799,81.8,144.2,144.17,32.89315774]
[1741138895970,81.8,144.2,144.19,25.95705774]
[1741138896173,81.8,144.24,144.19,25.95705774]
[1741138896492,81.8,144.24,144.21,25.95705774]
[1741138896807,81.8,144.24,144.2,25.95705774]
[1741138897800,114.69005774,144.24,144.17,25.95705774]
[1741138898299,244.34138088,144.23,144.17,25.95705774]
[1741138898477,244.34138088,144.23,144.16,25.99005774]
[1741138898677,218.1,144.22,144.16,32.92675774]
[1741138898881,218.1,144.22,144.17,25.95705774]
[1741138899899,107.75705774,144.24,144.18,25.95705774]
[1741138900093,88.733,144.24,144.18,25.95705774]
[1741138900305,88.7329,144.24,144.18,25.95705774]
[1741138900471,0.28432314,144.23,144.18,25.95705774]
[1741138900674,0.28432314,144.23,144.17,25.95705774]
[1741138900675,26.24138088,144.23,144.17,25.95705774]
[1741138900875,88.7329,144.24,144.16,25.99005774]
[1741138900876,0.28432314,144.21,144.16,25.99005774]
[1741138901302,81.8,144.2,144.16,25.99005774]
[1741138901602,81.8,144.2,144.16,0.033]
[1741138901777,88.7348,144.2,144.16,0.033]
[1741138901977,81.8,144.19,144.16,0.033]
[1741138902199,81.8,144.19,144.16,25.99005774]
[1741138902407,81.8,144.19,144.18,25.95705774]
[1741138902581,81.8,144.23,144.18,25.95705774]
[1741138902782,81.8,144.23,144.2,25.95705774]
[1741138903993,81.8,144.23,144.16,0.033]
[1741138904199,88.7334,144.23,144.18,25.95705774]
[1741138904393,29.39100585,144.25,144.2,25.95705774]
[1741138904394,3.43394811,144.25,144.2,25.95705774]
[1741138904598,5.66,144.26,144.2,25.95705774]
[1741138904599,81.8,144.27,144.23,25.95705774]
[1741138904898,81.8,144.26,144.23,25.95705774]
[1741138905603,81.8,144.26,144.22,25.95705774]
[1741138905784,88.7323,144.26,144.2,25.95705774]
[1741138905986,81.8,144.25,144.2,25.95705774]
[1741138906186,81.8,144.24,144.2,25.95705774]
[1741138907103,81.8,144.24,144.19,25.95705774]
[1741138907512,81.8,144.24,144.2,25.95705774]
[1741138907920,81.8,144.24,144.21,25.95705774]
[1741138908208,81.8,144.24,144.22,25.95705774]
[1741138908575,81.8,144.24,144.17,6.9362]
[1741138908778,81.8,144.24,144.21,25.95705774]
[1741138910589,88.7329,144.24,144.19,25.95705774]
[1741138911007,88.7329,144.24,144.2,25.95705774]
[1741138911587,81.8,144.24,144.21,25.95705774]
[1741138911786,85.21710658,144.24,144.21,25.95705774]
[1741138912004,92.15000658,144.24,144.21,25.95705774]
[1741138912299,92.15000658,144.24,144.2,25.95705774]
[1741138914689,85.21710658,144.24,144.2,25.95705774]
[1741138916518,85.21710658,144.24,144.2,32.89185774]
[1741138916714,85.21710658,144.24,144.17,81.6]
[1741138917018,85.21710658,144.24,144.21,25.95705774]
[1741138917230,85.21710658,144.24,144.2,25.95705774]
[1741138917715,81.8,144.24,144.18,6.9357]
[1741138917897,88.7316,144.27,144.22,25.95705774]
[1741138918101,81.8,144.26,144.22,25.95705774]
[1741138919292,88.732,144.26,144.22,25.95705774]